bitfinex/quotes_ETHUSD_20250129
["timestamp","ask_amount","ask_price","bid_price","bid_amount"]
[1738125459906,3.19034,3134.5,3133.9,3.19087]
[1738125460095,3.19009,3134.7,3133.9,3.19087]
[1738125460404,3.19036,3134.5,3133.9,3.19087]
[1738125460609,3.19036,3134.5,3133.9,3.905417]
[1738125461367,0.7894,3134.8,3134.1,0.7795]
[1738125461572,3.18993,3134.9,3134.1,0.7795]
[1738125461794,3.19014,3134.7,3134.1,3.97017]
[1738125462268,3.18972,3135.1,3134.3,4.01217]
[1738125462469,7.19206,3135.3,3134.6,3.19017]
[1738125462706,3.1895,3135.3,3134.7,0.8217]
[1738125462907,3.1896,3135.2,3134.7,0.8217]
[1738125463090,3.1896,3135.2,3134.8,0.05105639]
[1738125463271,3.18969,3135.1,3134.8,0.05105639]
[1738125467137,3.18989,3134.9,3134.8,0.05105639]
[1738125467431,3.18989,3134.9,3134.4,0.7744]
[1738125467775,3.18989,3134.9,3134.5,0.05111019]
[1738125469190,3.18978,3135.1,3134.5,3.24135019]
[1738125469380,3.18978,3135.1,3134.5,3.27325162]
[1738125469582,3.18978,3135.1,3134.6,0.40476516]
[1738125469891,3.18952,3135.3,3134.7,0.05101602]
[1738125470208,3.18969,3135.1,3134.7,0.05101602]
[1738125470514,3.18969,3135.1,3134.4,3.96472]
[1738125470729,6.37947,3135.1,3134.8,0.05101602]
[1738125471017,3.18981,3135.0,3134.4,3.96472]
[1738125471217,3.18981,3135.0,3134.9,0.05101602]
[1738125471374,3.18981,3135.0,3134.4,3.96472]
[1738125471576,3.18981,3135.0,3134.9,0.05101602]
[1738125471823,3.18981,3135.0,3134.4,3.96472]
[1738125472031,3.18981,3135.0,3134.9,0.05101602]
[1738125472187,3.18981,3135.0,3134.4,3.96472]
[1738125472373,3.18981,3135.0,3134.9,0.05101602]
[1738125472575,3.18995,3134.9,3134.4,0.7744]
[1738125473002,3.18995,3134.9,3134.5,0.05101602]
[1738125475822,3.18997,3134.9,3134.5,0.05101602]
[1738125475996,3.19016,3134.7,3134.5,0.05101602]
[1738125476215,3.19016,3134.7,3134.2,3.19059]
[1738125476415,3.19016,3134.7,3134.6,0.05092859]
[1738125476627,3.19016,3134.7,3134.2,3.19059]
[1738125476936,3.19016,3134.7,3134.1,0.7617]
[1738125477138,3.19031,3134.5,3134.3,0.05092859]
[1738125477441,3.19031,3134.5,3134.1,0.7617]
[1738125477739,3.19031,3134.5,3134.2,0.05100931]
[1738125479543,3.1905,3134.3,3134.2,0.05100931]
[1738125479863,3.19031,3134.5,3133.9,3.97469]
[1738125479864,3.95581,3134.5,3133.9,3.97469]
[1738125480338,7.1462,3134.5,3134.0,0.05122455]
[1738125480541,3.19047,3134.4,3133.9,0.7838]
[1738125481738,3.19047,3134.4,3134.0,0.05122455]
[1738125482146,3.1902,3134.6,3134.0,3.24201455]
[1738125482611,3.9864,3134.8,3134.2,3.19056]
[1738125482815,7.17648,3134.8,3134.3,0.8159]
[1738125483031,3.9864,3134.8,3134.3,0.86702365]
[1738125484768,3.1902,3134.6,3134.3,0.05112365]
[1738125484912,3.1904,3134.4,3134.3,0.05112365]
[1738125485117,3.9716,3134.4,3133.7,3.94683]
[1738125485353,3.9716,3134.4,3133.8,0.05111693]
[1738125485623,3.9716,3134.4,3133.8,3.24212693]
[1738125486414,7.16209,3134.4,3133.8,3.24212693]
[1738125486619,3.19058,3134.3,3133.8,0.05111693]
[1738125486958,3.19058,3134.3,3133.8,3.19098]
[1738125487155,0.7812,3134.4,3133.9,0.44595637]
[1738125487334,3.19037,3134.5,3133.9,3.63679637]
[1738125487862,3.1901,3134.7,3134.1,3.94643]
[1738125488157,3.1901,3134.7,3134.2,0.05123128]
[1738125488357,3.19003,3134.8,3134.2,0.05123128]
[1738125488519,3.19003,3134.8,3134.3,3.19049]
[1738125488725,6.1512,3134.9,3134.1,0.7558]
[1738125489024,3.1903,3134.5,3134.4,0.05123128]
[1738125489243,3.1903,3134.5,3134.1,0.7558]
[1738125489448,3.1903,3134.5,3134.4,0.05123128]
[1738125489646,3.19041,3134.4,3134.1,0.7558]
[1738125489855,3.19041,3134.4,3133.9,3.19088]
[1738125490161,3.19052,3134.3,3133.8,0.7558]
[1738125490835,3.19064,3134.2,3133.7,3.19107]
[1738125491859,3.19064,3134.2,3133.6,0.7835]
[1738125492785,3.19082,3134.0,3133.6,0.7835]
[1738125492977,3.19082,3134.0,3133.3,3.19152]
[1738125493127,0.7547,3133.9,3133.3,4.288472]
[1738125493331,3.94569,3133.9,3133.3,0.7778]
[1738125493567,3.19112,3133.7,3133.3,0.7778]
[1738125494435,3.19112,3133.7,3133.2,3.19161]
[1738125495279,5.37,3134.3,3133.0,0.7564]
[1738125495280,3.19156,3133.3,3133.0,0.7564]
[1738125495457,0.394586,3133.2,3132.8,0.7905]
[1738125495663,3.19156,3133.3,3132.8,0.7905]
[1738125496073,3.19174,3133.1,3132.6,3.19218]
[1738125496381,3.19174,3133.1,3132.5,0.7905]
[1738125496557,3.19174,3133.1,3132.5,3.98282]
[1738125497281,3.19189,3133.0,3132.5,0.7905]
[1738125497454,3.19189,3133.0,3132.5,1.49467332]
[1738125497782,3.19167,3133.2,3132.6,3.19222]
[1738125498131,3.19167,3133.2,3132.7,0.05215991]
[1738125498333,3.19176,3133.1,3132.7,0.05215991]
[1738125498572,3.19176,3133.1,3132.5,1.49467332]
[1738125498777,3.19202,3132.9,3132.6,0.05215991]
[1738125498984,3.97322,3132.9,3132.6,0.05215991]
[1738125499289,3.97322,3132.9,3132.2,3.19262]
[1738125499451,3.97322,3132.9,3132.7,0.05130227]
[1738125499772,3.97322,3132.9,3132.8,0.05130227]
[1738125500075,3.19207,3132.8,3132.2,3.19262]
[1738125500237,3.97322,3132.9,3132.3,3.19253]
[1738125500838,3.19202,3132.9,3132.3,3.19253]
[1738125501037,3.19202,3132.9,3132.5,0.7624]
[1738125501578,3.0,3133.0,3132.5,0.7624]
[1738125501773,3.0,3133.0,3132.5,3.95472]
[1738125502581,8.56155,3133.3,3132.6,3.19213]
[1738125502752,8.56155,3133.3,3132.7,3.19212]
[1738125502957,3.0,3133.2,3132.7,3.19212]
[1738125503283,8.56155,3133.3,3132.7,3.19212]
[1738125503284,5.37,3133.3,3132.9,0.7624]
[1738125503475,3.95234,3133.9,3132.9,0.79431545]
[1738125503694,8.56073,3134.1,3133.4,0.7624]
[1738125503900,3.19073,3134.1,3133.5,3.19131]
[1738125504191,3.0,3134.1,3133.5,3.19131]
[1738125504341,3.19071,3134.1,3133.5,3.19131]
[1738125506353,3.19071,3134.1,3133.5,3.61686909]
[1738125508368,3.19082,3134.0,3133.4,0.7624]
[1738125508569,3.19082,3134.0,3133.4,3.9538]
[1738125508966,3.19129,3133.6,3133.1,0.7872]
[1738125509180,3.19132,3133.5,3133.1,0.7872]
[1738125510595,3.19132,3133.5,3132.8,0.7778]
[1738125510759,3.19155,3133.3,3132.8,0.7778]
[1738125510958,3.19132,3133.5,3132.8,0.7778]
[1738125511172,3.19132,3133.5,3132.9,3.22381747]
[1738125511493,8.56114,3133.7,3132.9,3.22381747]
[1738125511787,8.56114,3133.7,3133.1,3.19165]
[1738125511996,8.56114,3133.7,3133.2,3.19162]
[1738125512679,8.56114,3133.7,3133.0,0.7778]
[1738125512859,8.56114,3133.7,3133.0,0.80971341]
[1738125513054,8.56114,3133.7,3133.1,0.05077769]
[1738125514210,8.56114,3133.7,3133.1,3.24242769]
[1738125515409,8.56114,3133.7,3133.2,0.765]
[1738125515410,5.37,3133.7,3133.2,0.765]
[1738125515595,5.37,3133.7,3133.4,3.19138]
[1738125515991,5.37,3133.7,3133.5,0.05077769]
[1738125516184,3.19091,3133.9,3133.5,0.05077769]
[1738125517512,3.0,3134.1,3133.7,0.801]
[1738125517815,3.0,3134.1,3133.7,3.9921]
[1738125517987,3.0,3134.1,3133.8,0.05060284]
[1738125518327,6.19071,3134.1,3133.9,0.05059611]
[1738125518520,6.19071,3134.1,3133.7,0.801]
[1738125518729,5.37,3134.4,3134.0,0.05059611]
[1738125519013,3.19046,3134.4,3133.8,3.19101]
[1738125519425,3.19051,3134.3,3133.9,0.05059611]
[1738125519772,3.19051,3134.3,3133.8,3.19101]
[1738125519999,3.1906,3134.2,3134.0,0.05044818]
[1738125520206,3.1906,3134.2,3133.6,3.19114]
[1738125520406,3.1906,3134.2,3134.1,0.05044818]
[1738125520616,3.1906,3134.2,3133.6,3.19114]
[1738125520771,3.1906,3134.2,3134.1,0.05022628]
[1738125520976,3.19084,3134.0,3133.4,4.00249]
[1738125521181,3.19084,3134.0,3133.5,3.19131]
[1738125521795,3.1904,3134.4,3133.4,4.00249]
[1738125522127,3.19073,3134.1,3133.5,3.19128]
[1738125522339,3.19073,3134.1,3133.5,3.91384793]
[1738125522823,3.19082,3134.0,3133.5,0.72256793]
[1738125526885,3.19069,3134.2,3133.5,0.72256793]
[1738125527091,3.19069,3134.2,3133.6,3.19115]
[1738125528242,3.19069,3134.2,3133.7,0.05022628]
[1738125528617,3.19046,3134.4,3133.8,3.191]
[1738125528843,3.19057,3134.3,3133.9,0.7937]
[1738125529226,3.19057,3134.3,3134.0,0.05022628]
[1738125532358,3.19057,3134.3,3134.0,0.04683441]
[1738125533366,11.75067,3134.5,3134.0,0.04683441]
[1738125533661,11.75068,3134.5,3134.0,0.04683441]
[1738125533866,3.19049,3134.4,3134.0,0.04683441]
[1738125534719,0.7579,3135.0,3134.2,3.19058]
[1738125534919,3.94777,3135.0,3134.4,3.19039]
[1738125535114,0.7579,3135.0,3134.4,3.19039]
[1738125535318,3.0,3134.8,3134.5,0.04975694]
[1738125535850,3.0,3134.8,3134.6,0.7877]
[1738125536164,6.88478,3134.8,3134.6,0.7877]
[1738125536311,3.19011,3134.7,3134.3,0.7877]
[1738125537828,3.0,3134.8,3134.3,0.81960171]
[1738125538033,3.1898,3135.0,3134.4,3.19032]
[1738125538242,3.0,3134.9,3134.4,3.19032]
[1738125538450,3.19001,3134.8,3134.3,0.7877]
[1738125538965,6.38009,3134.8,3134.3,0.7877]
[1738125539621,3.19001,3134.8,3134.3,0.7877]
[1738125539984,3.0,3134.9,3134.4,0.04970317]
[1738125540168,3.0,3134.9,3134.5,0.8227]
[1738125540518,3.0,3134.9,3134.6,0.04970317]
[1738125540861,3.0,3134.9,3134.5,0.8227]
[1738125541064,3.0,3134.9,3134.7,0.04970317]
[1738125541362,3.0,3134.9,3134.8,0.04970317]
[1738125541519,3.0,3134.9,3134.5,0.8227]
[1738125541718,3.0,3134.9,3134.8,0.04970317]
[1738125541954,6.18989,3134.9,3134.5,0.8227]
[1738125542131,3.18983,3135.0,3134.8,0.04970317]
[1738125542472,3.18983,3135.0,3134.5,4.01299]
[1738125542662,6.18983,3135.0,3134.9,0.04970317]
[1738125543166,6.18983,3135.0,3134.5,0.8227]
[1738125543334,6.18983,3135.0,3134.9,0.04970317]
[1738125543536,6.18983,3135.0,3134.5,4.01296]
[1738125543745,9.3797,3135.0,3134.9,0.049273]
[1738125543954,3.18992,3134.9,3134.5,0.8227]
[1738125547458,3.18982,3135.0,3134.5,0.8227]
[1738125547982,3.18989,3134.9,3134.5,0.8227]
[1738125548167,3.19006,3134.8,3134.5,0.8227]
[1738125548371,3.19019,3134.6,3134.1,3.96869]
[1738125548575,3.19019,3134.6,3134.1,0.778]
[1738125548941,3.19019,3134.6,3134.1,3.9687]
[1738125549143,3.19006,3134.8,3134.1,3.9687]
[1738125549342,6.38014,3134.8,3134.2,3.1906]
[1738125549662,3.19011,3134.7,3134.2,3.1906]
[1738125551892,4.02184,3135.0,3134.2,3.1906]
[1738125552063,3.1896,3135.2,3134.6,3.19012]
[1738125552396,3.1896,3135.2,3134.8,0.7717]
[1738125552687,3.0,3135.3,3134.8,0.7717]
[1738125552979,3.18939,3135.4,3134.8,3.96165]
[1738125553145,6.37885,3135.4,3134.8,3.96165]
[1738125553781,6.37886,3135.4,3134.8,3.96165]
[1738125555086,3.18939,3135.4,3134.8,3.96165]
[1738125555250,3.18939,3135.4,3134.9,3.18988]
[1738125555672,3.18939,3135.4,3134.8,0.7717]
[1738125555985,3.18955,3135.3,3134.8,0.7717]
[1738125556281,0.7816,3135.2,3134.5,0.8006]
[1738125556481,3.1899,3134.9,3134.5,0.8006]
[1738125556852,3.18986,3135.0,3134.5,0.8006]
[1738125558265,3.18986,3135.0,3134.6,0.04882276]
[1738125558577,3.18986,3135.0,3134.5,0.8006]
[1738125558750,3.18986,3135.0,3134.6,0.04882276]
[1738125559084,3.18986,3135.0,3134.5,0.8006]
[1738125559285,3.18986,3135.0,3134.7,0.04882276]
[1738125559455,3.18986,3135.0,3134.5,0.8006]
[1738125560090,3.18986,3135.0,3134.6,0.04882276]
[1738125560587,6.37974,3135.0,3134.7,0.04882276]
[1738125560790,3.18997,3134.9,3134.5,0.8006]
[1738125560984,3.1901,3134.7,3134.6,0.04882276]
[1738125561191,3.19007,3134.8,3134.2,3.94967]
[1738125561402,3.19007,3134.8,3134.3,0.04882276]
[1738125562385,3.19027,3134.6,3134.3,0.04882276]
[1738125566094,3.8996304,3134.8,3134.3,0.04882276]
[1738125566858,7.0897204,3134.8,3134.3,0.04882276]
[1738125567820,3.1904,3134.4,3134.3,0.04882276]
[1738125568101,3.19067,3134.2,3133.9,0.8302]
[1738125568395,3.19067,3134.2,3134.0,0.04571664]
[1738125568961,0.31904,3134.3,3134.0,0.04571664]
[1738125569200,3.50958,3134.3,3134.0,0.04571664]
[1738125569698,3.19024,3134.6,3134.0,3.23644664]
[1738125569867,3.19032,3134.5,3134.0,3.23644664]
[1738125570684,3.19032,3134.5,3134.0,0.04571664]
[1738125571070,3.19024,3134.6,3134.0,0.04571664]
[1738125571276,3.19024,3134.6,3134.0,3.23644664]
[1738125572001,3.0,3134.7,3134.3,3.19048]
[1738125572204,3.0,3134.7,3134.4,0.04594513]
[1738125572512,3.18984,3135.0,3134.5,0.7604]
[1738125572661,6.37927,3135.2,3134.5,3.95069]
[1738125572861,6.37927,3135.2,3134.6,0.04578384]
[1738125573260,3.18962,3135.2,3134.6,0.04578384]
[1738125574231,3.18979,3135.0,3134.6,0.04578384]
[1738125574593,3.18979,3135.0,3134.5,3.95069]
[1738125574902,3.18979,3135.0,3134.6,0.04578384]
[1738125575208,3.18979,3135.0,3134.5,3.95069]
[1738125575532,3.18979,3135.0,3134.6,0.04578384]
[1738125575879,3.18979,3135.0,3134.5,3.95069]
[1738125576077,3.18979,3135.0,3134.7,0.04578384]
[1738125576294,3.18979,3135.0,3134.5,3.95069]
[1738125576774,3.18979,3135.0,3134.6,0.04578384]
[1738125576979,3.18979,3135.0,3134.5,3.95069]
[1738125577178,3.18979,3135.0,3134.6,0.44862123]
[1738125577717,6.37931,3135.2,3134.6,0.44862123]
[1738125577880,6.37931,3135.2,3134.6,0.04578384]
[1738125578081,3.18962,3135.2,3134.6,3.23590384]
[1738125578417,8.55941,3135.4,3134.9,3.18988]
[1738125578715,8.55941,3135.4,3135.0,0.04546803]
[1738125579898,3.18964,3135.2,3135.0,0.04546803]
[1738125580214,3.1899,3134.9,3134.6,0.8287]
[1738125583524,3.18978,3135.1,3134.6,0.8287]
[1738125584135,3.18978,3135.1,3134.6,4.01889]
[1738125585483,3.18978,3135.1,3134.6,0.8287]
[1738125585689,3.1898,3135.0,3134.6,0.8287]
[1738125587044,3.18978,3135.1,3134.6,0.8287]
[1738125587837,6.37957,3135.1,3134.6,0.8287]
[1738125588140,0.637957,3135.0,3134.6,0.8287]
[1738125588292,0.637957,3135.0,3134.7,0.04543443]
[1738125590043,3.18978,3135.1,3134.7,0.04543443]
[1738125590578,6.37956,3135.1,3134.7,0.04543443]
[1738125591070,3.18978,3135.1,3134.7,0.04543443]
[1738125591772,3.18981,3135.0,3134.7,0.04543443]
[1738125593164,3.18954,3135.3,3134.7,0.04543443]
[1738125593367,3.18965,3135.2,3134.7,0.04543443]
[1738125594355,3.18954,3135.3,3134.7,3.23551443]
[1738125594547,6.37912,3135.3,3134.7,3.23551443]
[1738125595176,3.18954,3135.3,3134.7,3.23551443]
[1738125595334,3.0,3135.4,3134.9,0.769]
[1738125595535,3.0,3135.4,3134.9,3.95887]
[1738125595860,3.0,3135.4,3135.0,0.0455688]
[1738125596778,3.18951,3135.3,3135.0,0.0455688]
[1738125601474,3.18959,3135.2,3135.0,0.0455688]
[1738125601770,3.18969,3135.1,3135.0,0.0455688]
[1738125602074,3.18994,3134.9,3134.6,0.8247]
[1738125602578,3.18994,3134.9,3134.7,0.04385254]
[1738125607786,3.18969,3135.1,3134.7,0.04385254]
[1738125608083,3.18951,3135.3,3134.9,0.8106]
[1738125608442,3.18978,3135.1,3135.0,0.04393988]
[1738125608807,3.508758,3135.1,3135.0,0.04393988]
[1738125609077,3.508758,3135.1,3134.7,0.8106]
[1738125609293,3.18978,3135.1,3135.0,0.04393988]
[1738125609583,3.18978,3135.1,3134.7,0.8106]
[1738125609986,3.18978,3135.1,3134.8,0.04393988]
[1738125613869,3.18999,3134.8,3134.2,3.19054]
[1738125614210,3.18999,3134.8,3134.3,0.04394659]
[1738125614581,3.19033,3134.5,3134.3,0.04394659]
[1738125614779,3.1904,3134.4,3134.3,0.04394659]
[1738125614986,3.19033,3134.5,3133.9,0.7912]
[1738125615194,3.19033,3134.5,3133.9,3.98211]
[1738125615394,3.19033,3134.5,3134.0,0.04264416]
[1738125615605,3.19061,3134.2,3134.0,0.04264416]
[1738125615915,3.1907,3134.1,3134.0,0.04264416]
[1738125616270,3.19089,3134.0,3133.4,3.95145]
[1738125616621,0.7739,3134.2,3132.8,8.826]
[1738125616622,3.19124,3133.6,3133.5,0.04264416]
[1738125616909,3.96514,3133.6,3133.1,0.7601]
[1738125617070,3.19119,3133.7,3133.1,0.7601]
[1738125617273,9.33472,3134.0,3133.2,3.19152]
[1738125617503,9.33472,3134.0,3133.3,3.19145]
[1738125617686,3.19091,3133.9,3133.3,3.19145]
[1738125617867,3.19091,3133.9,3133.3,3.48896301]
[1738125618067,3.19091,3133.9,3133.4,0.04264416]
[1738125618706,9.33472,3134.0,3133.4,0.04264416]
[1738125619128,8.56082,3134.0,3133.4,3.23399416]
[1738125619683,8.56082,3134.0,3133.5,0.7788]
[1738125620117,3.19091,3133.9,3133.6,0.04264416]
[1738125620284,3.19103,3133.8,3133.6,0.04264416]
[1738125620632,3.19103,3133.8,3133.3,0.7788]
[1738125620929,3.19103,3133.8,3133.4,0.04264416]
[1738125622433,3.19082,3134.0,3133.4,0.04264416]
[1738125622585,3.19082,3134.0,3133.4,3.23405416]
[1738125622986,3.19097,3133.9,3133.4,0.04264416]
[1738125628357,3.1912,3133.7,3133.4,0.04264416]
[1738125628507,3.19129,3133.6,3133.4,0.04264416]
[1738125628704,3.9502,3133.7,3133.0,0.793]
[1738125629020,3.1912,3133.7,3133.5,0.04332922]
[1738125629211,3.19092,3133.9,3133.2,3.19162]
[1738125629412,3.19092,3133.9,3133.6,0.04332922]
[1738125629644,0.394992,3133.8,3133.3,0.8241]
[1738125629950,3.19092,3133.9,3133.3,0.8241]
[1738125630158,3.19092,3133.9,3133.4,0.04332922]
[1738125630370,3.19101,3133.8,3133.4,0.04332922]
[1738125630927,3.19092,3133.9,3133.4,0.04332922]
[1738125631547,3.19123,3133.6,3133.4,0.04332922]
[1738125631726,3.510433,3133.5,3133.4,0.04332922]
[1738125631929,3.510433,3133.5,3133.1,0.7905]
[1738125632240,3.19131,3133.5,3133.1,0.7905]
[1738125632446,3.19131,3133.5,3133.2,0.07628722]
[1738125633946,6.3824,3133.7,3133.2,0.07628722]
[1738125634179,3.19124,3133.6,3133.2,0.07628722]
[1738125636994,3.19133,3133.5,3133.2,0.07628722]
[1738125637161,3.96143,3133.5,3133.2,0.07628722]
[1738125637578,3.19163,3133.2,3132.8,0.755]
[1738125638008,3.19163,3133.2,3132.9,0.07650225]
[1738125638516,3.19178,3133.1,3132.5,4.02502]
[1738125638725,3.19178,3133.1,3132.6,3.19222]
[1738125638899,3.19157,3133.3,3132.6,3.26886336]
[1738125639092,0.396143,3133.4,3132.6,3.26886336]
[1738125639093,3.19164,3133.2,3132.6,6.46103336]
[1738125639413,3.19164,3133.2,3132.6,3.71298758]
[1738125639580,3.19164,3133.2,3132.7,0.8327]
[1738125640227,3.0,3133.4,3132.8,0.07664336]
[1738125640521,3.0,3133.6,3133.0,3.19176]
[1738125640826,3.19123,3133.6,3133.0,3.19176]
[1738125641130,3.19123,3133.6,3133.1,0.07664336]
[1738125641328,3.7918,3133.8,3133.2,0.8327]
[1738125641561,3.0,3133.8,3133.2,4.02423]
[1738125641878,3.0,3133.8,3133.3,0.07664336]
[1738125642074,3.0,3133.8,3133.4,4.02406]
[1738125642287,3.19052,3134.3,3133.7,3.19111]
[1738125642486,3.19052,3134.3,3133.8,0.8327]
[1738125642693,3.19052,3134.3,3133.8,0.90930304]
[1738125642888,3.0,3134.4,3133.8,4.10028304]
[1738125643115,6.1904,3134.4,3133.8,4.10028304]
[1738125643631,3.0,3134.2,3133.8,4.10028304]
[1738125644000,3.0,3134.2,3133.8,0.90930304]
[1738125644983,0.7918,3134.6,3133.8,0.90930304]
[1738125645294,3.0,3134.2,3133.8,0.90930304]
[1738125646216,3.1903,3134.5,3133.8,4.13212033]
[1738125646383,3.19022,3134.6,3134.0,3.19075]
[1738125646587,3.0,3134.5,3133.9,0.03190592]
[1738125646785,6.19034,3134.5,3134.1,0.07587071]
[1738125646985,6.19034,3134.5,3133.8,7.21462]
[1738125647212,3.0,3134.5,3134.2,0.07587071]
[1738125647425,3.19042,3134.4,3133.8,4.02362]
[1738125648026,3.19023,3134.6,3133.9,3.26675071]
[1738125648235,3.19031,3134.5,3133.9,3.26675071]
[1738125649626,6.97374,3134.8,3134.0,0.83210615]
[1738125649840,3.19004,3134.8,3134.1,1.21008569]
[1738125650037,3.19004,3134.8,3134.3,3.19049]
[1738125650392,3.19004,3134.8,3134.4,0.07569607]
[1738125651717,3.0,3134.9,3134.5,0.7994]
[1738125651889,3.18989,3134.9,3134.6,0.07568936]
[1738125652096,3.19002,3134.8,3134.5,0.7994]
[1738125652325,3.19002,3134.8,3134.6,0.0756222]
[1738125652712,3.19002,3134.8,3134.2,0.7994]
[1738125652911,3.19002,3134.8,3134.7,0.0756222]
[1738125653110,3.19002,3134.8,3134.2,0.7994]
[1738125653315,3.19002,3134.8,3134.3,0.0756222]
[1738125653499,3.0,3135.0,3134.5,0.7818]
[1738125653724,3.18959,3135.2,3134.6,3.19019]
[1738125653924,3.0,3135.1,3134.6,3.26573833]
[1738125654327,3.18972,3135.1,3134.6,0.07554833]
[1738125654840,3.18972,3135.1,3134.5,0.7818]
[1738125655008,3.18972,3135.1,3134.7,0.07554833]
[1738125655009,3.18989,3134.9,3134.7,0.07554833]
[1738125655209,3.18989,3134.9,3134.5,0.7818]
[1738125655414,3.18989,3134.9,3134.8,0.07540731]
[1738125655926,3.18989,3134.9,3134.5,0.7818]
[1738125656131,3.18989,3134.9,3134.6,0.07540731]
[1738125656625,3.18989,3134.9,3134.5,0.7818]
[1738125656836,3.18989,3134.9,3134.7,0.07540731]
[1738125657006,3.18989,3134.9,3134.5,0.7818]
[1738125657209,3.18989,3134.9,3134.8,0.07540731]
[1738125657403,3.18989,3134.9,3134.5,0.7818]
[1738125657609,3.18989,3134.9,3134.8,0.07540731]
[1738125657805,3.18989,3134.9,3134.5,0.7818]
[1738125658046,3.18989,3134.9,3134.8,0.07540731]
[1738125658250,3.19026,3134.6,3134.2,0.7562]
[1738125658546,3.19068,3134.2,3133.8,0.7562]
[1738125659425,3.19076,3134.1,3133.8,0.7562]
[1738125660522,3.19068,3134.2,3133.5,0.7695]
[1738125660523,3.19081,3134.0,3133.5,0.7695]
[1738125661712,3.19081,3134.0,3133.5,3.99269833]
[1738125661919,3.19081,3134.0,3133.5,3.96079]
[1738125662111,3.19068,3134.2,3133.5,3.96079]
[1738125662338,3.19067,3134.2,3133.5,4.77081605]
[1738125662648,3.19067,3134.2,3133.5,4.77078605]
[1738125662948,0.8031,3134.5,3134.0,0.8151]
[1738125663120,9.36314,3134.8,3134.1,0.03190525]
[1738125663321,3.19004,3134.8,3134.1,3.22260355]
[1738125663523,3.1898,3135.0,3134.5,0.8151]
[1738125664041,3.1898,3135.0,3134.6,0.07503121]
[1738125664482,3.1898,3135.0,3134.5,0.8151]
[1738125664771,3.18963,3135.2,3134.7,3.19006]
[1738125664966,5.37,3135.3,3134.8,0.319006]
[1738125665168,3.18939,3135.4,3134.9,0.7539]
[1738125665335,0.8198,3135.8,3135.1,3.18966]
[1738125665535,3.18905,3135.8,3135.1,3.18966]
[1738125665741,3.0,3135.7,3135.2,3.26452736]
[1738125665943,3.0,3135.7,3135.2,0.07495736]
[1738125666129,3.18936,3135.5,3135.2,0.07495736]
[1738125666329,3.1894,3135.4,3134.9,0.7539]
[1738125666529,3.18929,3135.5,3135.0,0.07475596]
[1738125666973,3.18924,3135.6,3135.0,0.07475596]
[1738125667964,6.37851,3135.6,3135.0,0.07475596]
[1738125668173,3.18931,3135.5,3135.0,0.07475596]
[1738125669969,1.155905,3135.7,3135.0,0.07475596]
[1738125670174,6.37851,3135.6,3135.0,0.07475596]
[1738125672641,3.18929,3135.5,3135.0,0.07475596]
[1738125673043,3.1894,3135.4,3135.0,0.07475596]
[1738125674064,4.2426815,3135.6,3135.0,0.07475596]
[1738125674437,4.2426815,3135.6,3135.0,3.26446596]
[1738125674644,3.18928,3135.5,3135.0,3.26446596]
[1738125675170,3.18928,3135.5,3135.0,0.07475596]
[1738125676869,3.18945,3135.4,3135.0,0.07475596]
[1738125677073,3.18969,3135.1,3135.0,0.07475596]
[1738125677275,3.827617,3135.1,3135.0,0.07475596]
[1738125677460,0.7511,3135.0,3134.2,0.799]
[1738125677636,6.38048,3134.6,3134.2,0.799]
[1738125677834,3.1902,3134.6,3134.2,0.799]
[1738125678143,3.19003,3134.8,3134.2,0.799]
[1738125678144,3.19003,3134.8,3134.3,0.06937836]
[1738125678337,3.19003,3134.8,3134.3,0.51037606]
[1738125678765,3.19003,3134.8,3134.3,3.66895469]
[1738125678951,3.19003,3134.8,3134.3,0.06937836]
[1738125679135,3.1901,3134.7,3134.3,0.06937836]
[1738125679661,3.0,3135.2,3134.3,0.06937836]
[1738125679662,3.18996,3134.9,3134.3,0.06937836]
[1738125679865,3.0,3135.0,3134.5,3.19028]
[1738125680262,6.18981,3135.0,3134.6,0.06970061]
[1738125680576,6.18981,3135.0,3134.4,0.79]
[1738125680773,3.18997,3134.9,3134.7,0.06965361]
[1738125680977,3.18999,3134.8,3134.4,0.79]
[1738125682484,3.19012,3134.7,3134.4,0.79]
[1738125682802,3.19022,3134.6,3134.1,0.8163]
[1738125683089,3.19047,3134.4,3134.1,0.8163]
[1738125683390,3.19058,3134.3,3133.8,0.8163]
[1738125683560,3.19034,3134.5,3133.8,4.00721]
[1738125683760,3.19034,3134.5,3134.0,3.1908]
[1738125683961,3.19034,3134.5,3134.1,0.8163]
[1738125684664,0.7816,3134.8,3133.7,0.7564]
[1738125684665,3.1906,3134.2,3133.7,0.7564]
[1738125684876,3.19073,3134.1,3133.7,0.7564]
[1738125685402,3.19042,3134.4,3133.7,0.78830842]
[1738125685547,6.38012,3134.8,3134.0,0.7564]
[1738125685752,3.1901,3134.7,3134.1,3.19065]
[1738125687152,3.1901,3134.7,3134.2,0.03190273]
[1738125688093,3.1901,3134.7,3134.1,3.19063]
[1738125688295,3.1901,3134.7,3134.2,0.03190274]
[1738125689202,3.18995,3134.9,3134.2,0.03190274]
[1738125689392,3.18995,3134.9,3134.3,4.00679]
[1738125689586,3.19,3134.8,3134.3,4.00679]
[1738125689893,3.19,3134.8,3134.3,0.8163]
[1738125690917,3.18984,3135.0,3134.3,4.00679]
[1738125691080,10.17077,3135.2,3134.5,3.19022]
[1738125691275,10.17077,3135.2,3134.6,0.7851]
[1738125691276,3.18962,3135.2,3134.6,0.7851]
[1738125691481,3.18962,3135.2,3134.6,3.97529]
[1738125693126,3.18962,3135.2,3134.7,0.07003627]
[1738125694119,3.18962,3135.2,3134.7,3.26010627]
[1738125694418,3.18962,3135.2,3134.7,0.07003627]